[Event "Titled Tuesday Blitz June 27 Late 2023"]
[White "Vaglio Mattey, Emanuel"]
[Black "GAO"]
[WhiteFideId "6504167"]
[WhiteElo "2513"]
[BlackElo "2344"]
[Result "1/2-1/2"]
[Round "5"]
[TimeControl "180+2"]
[Date "2023.06.27"]
[WhiteClock "0:00:21"]
[BlackClock "0:00:14"]
[Board "128"]

1. Nf3 {[%clk 0:03:00]}  Nf6 {[%clk 0:02:59]} 2. b3 {[%clk 0:02:59]}  g6 {[%clk 0:02:59]} 3. Bb2 {[%clk 0:03:00]}  Bg7 {[%clk 0:03:00]} 4. e3 {[%clk 0:03:00]}  O-O {[%clk 0:03:00]} 5. d4 {[%clk 0:03:00]}  b6 {[%clk 0:02:58]} 6. Be2 {[%clk 0:02:59]}  Bb7 {[%clk 0:02:59]} 7. O-O {[%clk 0:03:00]}  d6 {[%clk 0:02:59]} 8. c4 {[%clk 0:03:00]}  Nbd7 {[%clk 0:03:00]} 9. Nc3 {[%clk 0:03:01]}  e5 {[%clk 0:03:00]} 10. dxe5 {[%clk 0:02:58]}  dxe5 {[%clk 0:03:01]} 11. Qc2 {[%clk 0:02:58]}  Qe7 {[%clk 0:02:59]} 12. Rad1 {[%clk 0:02:56]}  Rfd8 {[%clk 0:02:59]} 13. Nd5 {[%clk 0:02:50]}  Nxd5 {[%clk 0:02:54]} 14. cxd5 {[%clk 0:02:51]}  Rac8 {[%clk 0:02:41]} 15. e4 {[%clk 0:02:31]}  a5 {[%clk 0:02:41]} 16. Bb5 {[%clk 0:02:30]}  Nc5 {[%clk 0:02:40]} 17. Ba3 {[%clk 0:02:26]}  c6 {[%clk 0:02:22]} 18. Bxc5 {[%clk 0:02:02]}  bxc5 {[%clk 0:02:13]} 19. Bc4 {[%clk 0:02:02]}  cxd5 {[%clk 0:02:08]} 20. exd5 {[%clk 0:01:54]}  Rd6 {[%clk 0:01:31]} 21. Rfe1 {[%clk 0:01:12]}  Rcd8 {[%clk 0:01:27]} 22. Qc3 {[%clk 0:01:12]}  Bxd5 {[%clk 0:01:21]} 23. Bxd5 {[%clk 0:01:11]}  Rxd5 {[%clk 0:01:21]} 24. Rxd5 {[%clk 0:01:12]}  Rxd5 {[%clk 0:01:20]} 25. Qxa5 {[%clk 0:01:12]}  e4 {[%clk 0:01:02]} 26. Qa8+ {[%clk 0:01:11]}  Rd8 {[%clk 0:00:47]} 27. Qxe4 {[%clk 0:01:11]}  Qxe4 {[%clk 0:00:44]} 28. Rxe4 {[%clk 0:01:12]}  Rd1+ {[%clk 0:00:44]} 29. Re1 {[%clk 0:01:13]}  Rd6 {[%clk 0:00:32]} 30. Kf1 {[%clk 0:01:03]}  Ra6 {[%clk 0:00:30]} 31. Re2 {[%clk 0:01:01]}  Bc3 {[%clk 0:00:27]} 32. Rc2 {[%clk 0:00:58]}  Bb4 {[%clk 0:00:25]} 33. a4 {[%clk 0:00:58]}  Re6 {[%clk 0:00:24]} 34. g3 {[%clk 0:00:50]}  Kg7 {[%clk 0:00:23]} 35. Nd2 {[%clk 0:00:35]}  h5 {[%clk 0:00:16]} 36. h4 {[%clk 0:00:34]}  Rd6 {[%clk 0:00:14]} 37. Ne4 {[%clk 0:00:31]}  Rd1+ {[%clk 0:00:13]} 38. Kg2 {[%clk 0:00:30]}  Rb1 {[%clk 0:00:13]} 39. Nxc5 {[%clk 0:00:23]}  Bxc5 {[%clk 0:00:12]} 40. Rxc5 {[%clk 0:00:24]}  Rxb3 {[%clk 0:00:13]} 41. Rc7 {[%clk 0:00:20]}  Ra3 {[%clk 0:00:13]} 42. Ra7 {[%clk 0:00:21]}  Kf6 {[%clk 0:00:12]} 43. a5 {[%clk 0:00:21]}  Kg7 {[%clk 0:00:12]} 44. Ra8 {[%clk 0:00:21]}  Kf6 {[%clk 0:00:12]} 45. a6 {[%clk 0:00:21]}  Kg7 {[%clk 0:00:12]} 46. Kf1 {[%clk 0:00:21]}  Ra2 {[%clk 0:00:12]} 47. a7 {[%clk 0:00:22]}  Kf6 {[%clk 0:00:11]} 48. Ke1 {[%clk 0:00:22]}  Kf5 {[%clk 0:00:11]} 49. Kd1 {[%clk 0:00:23]}  Kg4 {[%clk 0:00:09]} 50. Ke1 {[%clk 0:00:18]}  Kf3 {[%clk 0:00:08]} 51. Re8 {[%clk 0:00:10]}  Ra1+ {[%clk 0:00:06]} 52. Kd2 {[%clk 0:00:10]}  Rxa7 {[%clk 0:00:06]} 53. Re3+ {[%clk 0:00:06]}  Kg4 {[%clk 0:00:07]} 54. Rb3 {[%clk 0:00:07]}  Re7 {[%clk 0:00:06]} 55. Rb4+ {[%clk 0:00:05]}  Kf5 {[%clk 0:00:06]} 56. Rf4+ {[%clk 0:00:06]}  Ke6 {[%clk 0:00:06]} 57. Kd3 {[%clk 0:00:07]}  Rd7+ {[%clk 0:00:06]} 58. Ke3 {[%clk 0:00:08]}  Rd5 {[%clk 0:00:07]} 59. Ke2 {[%clk 0:00:07]}  Re5+ {[%clk 0:00:07]} 60. Kf1 {[%clk 0:00:07]}  Rf5 {[%clk 0:00:07]} 61. Ra4 {[%clk 0:00:08]}  Re5 {[%clk 0:00:07]} 62. Kg2 {[%clk 0:00:09]}  Kf6 {[%clk 0:00:08]} 63. Ra6+ {[%clk 0:00:09]}  Re6 {[%clk 0:00:08]} 64. Ra8 {[%clk 0:00:10]}  Kg7 {[%clk 0:00:08]} 65. f3 {[%clk 0:00:11]}  Rf6 {[%clk 0:00:09]} 66. g4 {[%clk 0:00:11]}  Rc6 {[%clk 0:00:07]} 67. g5 {[%clk 0:00:11]}  Rc4 {[%clk 0:00:07]} 68. Kg3 {[%clk 0:00:11]}  Rb4 {[%clk 0:00:07]} 69. Ra7 {[%clk 0:00:11]}  Rc4 {[%clk 0:00:07]} 70. Re7 {[%clk 0:00:12]}  Rb4 {[%clk 0:00:08]} 71. Rd7 {[%clk 0:00:12]}  Rc4 {[%clk 0:00:08]} 72. Rb7 {[%clk 0:00:13]}  Ra4 {[%clk 0:00:08]} 73. Rb5 {[%clk 0:00:13]}  Rc4 {[%clk 0:00:08]} 74. Rb3 {[%clk 0:00:13]}  Ra4 {[%clk 0:00:08]} 75. Re3 {[%clk 0:00:14]}  Rc4 {[%clk 0:00:09]} 76. Re4 {[%clk 0:00:14]}  Rc3 {[%clk 0:00:08]} 77. Kf4 {[%clk 0:00:14]}  Rc5 {[%clk 0:00:08]} 78. Ra4 {[%clk 0:00:15]}  Rb5 {[%clk 0:00:08]} 79. Ra7 {[%clk 0:00:14]}  Rf5+ {[%clk 0:00:08]} 80. Kg3 {[%clk 0:00:15]}  Rb5 {[%clk 0:00:08]} 81. Ra4 {[%clk 0:00:15]}  Rf5 {[%clk 0:00:08]} 82. Ra2 {[%clk 0:00:15]}  Rb5 {[%clk 0:00:08]} 83. Rf2 {[%clk 0:00:16]}  Rb4 {[%clk 0:00:09]} 84. f4 {[%clk 0:00:16]}  Rb3+ {[%clk 0:00:09]} 85. Rf3 {[%clk 0:00:16]}  Rb5 {[%clk 0:00:10]} 86. Re3 {[%clk 0:00:17]}  Rf5 {[%clk 0:00:10]} 87. Kf3 {[%clk 0:00:16]}  Ra5 {[%clk 0:00:10]} 88. Ra3 {[%clk 0:00:17]}  Rxa3+ {[%clk 0:00:10]} 89. Ke4 {[%clk 0:00:17]}  Ra5 {[%clk 0:00:10]} 90. Kd4 {[%clk 0:00:17]}  Rf5 {[%clk 0:00:11]} 91. Ke4 {[%clk 0:00:17]}  Kf8 {[%clk 0:00:11]} 92. Kd4 {[%clk 0:00:18]}  Rxf4+ {[%clk 0:00:11]} 93. Kd5 {[%clk 0:00:19]}  Rxh4 {[%clk 0:00:12]} 94. Ke5 {[%clk 0:00:19]}  Rg4 {[%clk 0:00:13]} 95. Kf6 {[%clk 0:00:20]}  h4 {[%clk 0:00:13]} 96. Ke5 {[%clk 0:00:20]}  Rxg5+ {[%clk 0:00:13]} 97. Kf6 {[%clk 0:00:21]}  Rh5 {[%clk 0:00:14]} 1/2-1/2


[Site "https://www.chess.com"]

[Event "Titled Tuesday Blitz June 27 Late 2023"]
[White "Roman, Rodrigo"]
[Black "Deng, Henry"]
[WhiteFideId "3701220"]
[BlackFideId "30965454"]
[WhiteElo "2344"]
[BlackElo "2493"]
[Result "0-1"]
[Round "5"]
[TimeControl "180+2"]
[Date "2023.06.27"]
[WhiteClock "0:00:18"]
[BlackClock "0:00:17"]
[Board "129"]

1. e4 {[%clk 0:03:00]}  c5 {[%clk 0:02:55]} 2. Nf3 {[%clk 0:02:59]}  e6 {[%clk 0:02:52]} 3. d4 {[%clk 0:02:58]}  cxd4 {[%clk 0:02:53]} 4. Nxd4 {[%clk 0:02:57]}  Nf6 {[%clk 0:02:53]} 5. Nc3 {[%clk 0:02:57]}  Nc6 {[%clk 0:02:54]} 6. Ndb5 {[%clk 0:02:54]}  Bc5 {[%clk 0:02:52]} 7. Bf4 {[%clk 0:02:48]}  O-O {[%clk 0:02:47]} 8. Bd6 {[%clk 0:02:45]}  Qb6 {[%clk 0:02:42]} 9. Bxc5 {[%clk 0:02:39]}  Qxc5 {[%clk 0:02:43]} 10. Qd6 {[%clk 0:02:35]}  Qb6 {[%clk 0:02:43]} 11. f3 {[%clk 0:02:11]}  Ne8 {[%clk 0:02:36]} 12. Qd2 {[%clk 0:02:03]}  a6 {[%clk 0:02:26]} 13. Na4 {[%clk 0:01:57]}  Qd8 {[%clk 0:02:15]} 14. Nd6 {[%clk 0:01:56]}  Nxd6 {[%clk 0:02:10]} 15. Qxd6 {[%clk 0:01:56]}  b5 {[%clk 0:02:10]} 16. Nc5 {[%clk 0:01:51]}  Qa5+ {[%clk 0:01:56]} 17. c3 {[%clk 0:01:47]}  b4 {[%clk 0:01:48]} 18. Nb3 {[%clk 0:01:42]}  Qb6 {[%clk 0:01:37]} 19. cxb4 {[%clk 0:01:33]}  Qe3+ {[%clk 0:01:31]} 20. Be2 {[%clk 0:01:24]}  a5 {[%clk 0:01:21]} 21. Nxa5 {[%clk 0:01:13]}  Ba6 {[%clk 0:00:47]} 22. Qd2 {[%clk 0:01:10]}  Qxd2+ {[%clk 0:00:45]} 23. Kxd2 {[%clk 0:01:10]}  Bxe2 {[%clk 0:00:45]} 24. Kxe2 {[%clk 0:01:11]}  Nxb4 {[%clk 0:00:46]} 25. Nc4 {[%clk 0:00:59]}  Nxa2 {[%clk 0:00:44]} 26. Rhd1 {[%clk 0:00:51]}  g6 {[%clk 0:00:43]} 27. Na3 {[%clk 0:00:35]}  Rxa3 {[%clk 0:00:28]} 28. bxa3 {[%clk 0:00:33]}  Nc3+ {[%clk 0:00:28]} 29. Ke3 {[%clk 0:00:31]}  Nxd1+ {[%clk 0:00:29]} 30. Rxd1 {[%clk 0:00:31]}  Ra8 {[%clk 0:00:30]} 31. Rxd7 {[%clk 0:00:26]}  Rxa3+ {[%clk 0:00:29]} 32. Kf2 {[%clk 0:00:27]}  Ra2+ {[%clk 0:00:29]} 33. Kg3 {[%clk 0:00:27]}  Kg7 {[%clk 0:00:30]} 34. h4 {[%clk 0:00:26]}  h6 {[%clk 0:00:30]} 35. Rb7 {[%clk 0:00:24]}  Rc2 {[%clk 0:00:29]} 36. Rb5 {[%clk 0:00:24]}  f5 {[%clk 0:00:28]} 37. e5 {[%clk 0:00:19]}  g5 {[%clk 0:00:28]} 38. hxg5 {[%clk 0:00:17]}  hxg5 {[%clk 0:00:28]} 39. Rb7+ {[%clk 0:00:18]}  Kg6 {[%clk 0:00:27]} 40. Rb6 {[%clk 0:00:19]}  f4+ {[%clk 0:00:23]} 41. Kh3 {[%clk 0:00:18]}  Kf5 {[%clk 0:00:24]} 42. Rb5 {[%clk 0:00:18]}  Rc1 {[%clk 0:00:24]} 43. Kh2 {[%clk 0:00:18]}  Re1 {[%clk 0:00:24]} 44. Ra5 {[%clk 0:00:16]}  Rxe5 {[%clk 0:00:24]} 45. Ra8 {[%clk 0:00:17]}  Re1 {[%clk 0:00:22]} 46. Rf8+ {[%clk 0:00:17]}  Kg6 {[%clk 0:00:23]} 47. Rg8+ {[%clk 0:00:17]}  Kf6 {[%clk 0:00:23]} 48. Rf8+ {[%clk 0:00:18]}  Kg7 {[%clk 0:00:24]} 49. Re8 {[%clk 0:00:18]}  e5 {[%clk 0:00:23]} 50. Re6 {[%clk 0:00:18]}  Kf7 {[%clk 0:00:22]} 51. Ra6 {[%clk 0:00:18]}  e4 {[%clk 0:00:20]} 52. fxe4 {[%clk 0:00:17]}  Rxe4 {[%clk 0:00:21]} 53. Kh3 {[%clk 0:00:17]}  Re3+ {[%clk 0:00:21]} 54. Kh2 {[%clk 0:00:17]}  g4 {[%clk 0:00:21]} 55. Ra4 {[%clk 0:00:17]}  g3+ {[%clk 0:00:22]} 56. Kh3 {[%clk 0:00:17]}  Kg6 {[%clk 0:00:19]} 57. Rxf4 {[%clk 0:00:17]}  Ra3 {[%clk 0:00:17]} 58. Rg4+ {[%clk 0:00:17]}  Kh5 {[%clk 0:00:18]} 59. Rxg3 {[%clk 0:00:18]}  Ra1 {[%clk 0:00:18]} 60. Rf3 {[%clk 0:00:18]}  Rh1+ {[%clk 0:00:18]} 61. Kg3 {[%clk 0:00:19]}  Kg6 {[%clk 0:00:18]} 62. Rf4 {[%clk 0:00:19]}  Ra1 {[%clk 0:00:18]} 63. Ra4 {[%clk 0:00:18]}  Rxa4 {[%clk 0:00:17]} 0-1


[Site "https://www.chess.com"]

[Event "Titled Tuesday Blitz June 27 Late 2023"]
[White "Cardozo Munar, Carlos Eduardo"]
[Black "Urbina Perez, Juan Antonio"]
[WhiteFideId "4409477"]
[BlackFideId "2217368"]
[WhiteElo "2315"]
[BlackElo "2469"]
[Result "1-0"]
[Round "5"]
[TimeControl "180+2"]
[Date "2023.06.27"]
[WhiteClock "0:00:15"]
[BlackClock "0:00:00"]
[Board "134"]

1. d4 {[%clk 0:03:00]}  Nf6 {[%clk 0:02:53]} 2. Bg5 {[%clk 0:03:00]}  e6 {[%clk 0:02:51]} 3. e4 {[%clk 0:02:58]}  h6 {[%clk 0:02:50]} 4. Bxf6 {[%clk 0:02:58]}  Qxf6 {[%clk 0:02:50]} 5. c3 {[%clk 0:02:59]}  c5 {[%clk 0:02:47]} 6. Nf3 {[%clk 0:02:58]}  g6 {[%clk 0:02:45]} 7. Nbd2 {[%clk 0:02:58]}  cxd4 {[%clk 0:02:44]} 8. cxd4 {[%clk 0:02:58]}  Bg7 {[%clk 0:02:44]} 9. Bd3 {[%clk 0:02:58]}  Nc6 {[%clk 0:02:41]} 10. e5 {[%clk 0:02:58]}  Qe7 {[%clk 0:02:36]} 11. O-O {[%clk 0:02:58]}  d5 {[%clk 0:02:29]} 12. a3 {[%clk 0:02:41]}  O-O {[%clk 0:02:27]} 13. Rc1 {[%clk 0:02:41]}  Bd7 {[%clk 0:02:25]} 14. Re1 {[%clk 0:02:39]}  Rac8 {[%clk 0:02:22]} 15. Qe2 {[%clk 0:02:39]}  a6 {[%clk 0:02:21]} 16. Nf1 {[%clk 0:02:39]}  Na7 {[%clk 0:02:19]} 17. Ng3 {[%clk 0:02:39]}  Rxc1 {[%clk 0:02:18]} 18. Rxc1 {[%clk 0:02:39]}  Rc8 {[%clk 0:02:18]} 19. Rxc8+ {[%clk 0:02:38]}  Nxc8 {[%clk 0:02:17]} 20. h4 {[%clk 0:02:39]}  Qd8 {[%clk 0:02:04]} 21. h5 {[%clk 0:02:38]}  g5 {[%clk 0:02:03]} 22. Bc2 {[%clk 0:02:37]}  Bb5 {[%clk 0:01:56]} 23. Qd2 {[%clk 0:02:31]}  Nb6 {[%clk 0:01:52]} 24. b3 {[%clk 0:02:28]}  g4 {[%clk 0:01:23]} 25. Nh2 {[%clk 0:02:22]}  Qg5 {[%clk 0:01:03]} 26. Qxg5 {[%clk 0:02:19]}  hxg5 {[%clk 0:01:04]} 27. Nxg4 {[%clk 0:02:19]}  Bf8 {[%clk 0:01:05]} 28. a4 {[%clk 0:02:18]}  Bc6 {[%clk 0:01:01]} 29. Nf6+ {[%clk 0:02:18]}  Kh8 {[%clk 0:00:59]} 30. Nf1 {[%clk 0:02:09]}  Nd7 {[%clk 0:01:00]} 31. Nh7 {[%clk 0:01:52]}  Be7 {[%clk 0:00:46]} 32. Ne3 {[%clk 0:01:51]}  f6 {[%clk 0:00:45]} 33. exf6 {[%clk 0:01:41]}  Nxf6 {[%clk 0:00:46]} 34. Nxg5 {[%clk 0:01:38]}  Nxh5 {[%clk 0:00:43]} 35. Nxe6 {[%clk 0:01:38]}  Kg8 {[%clk 0:00:31]} 36. g4 {[%clk 0:01:34]}  Nf6 {[%clk 0:00:31]} 37. f3 {[%clk 0:01:34]}  Ne8 {[%clk 0:00:28]} 38. Nf5 {[%clk 0:01:30]}  Bf6 {[%clk 0:00:26]} 39. Kg2 {[%clk 0:01:21]}  Kf7 {[%clk 0:00:21]} 40. Nf4 {[%clk 0:01:19]}  Bd7 {[%clk 0:00:17]} 41. Nxd5 {[%clk 0:01:16]}  Bxf5 {[%clk 0:00:18]} 42. Bxf5 {[%clk 0:01:06]}  Bxd4 {[%clk 0:00:18]} 43. f4 {[%clk 0:00:59]}  Nd6 {[%clk 0:00:18]} 44. Bd3 {[%clk 0:00:59]}  b5 {[%clk 0:00:18]} 45. Kf3 {[%clk 0:00:51]}  bxa4 {[%clk 0:00:17]} 46. bxa4 {[%clk 0:00:51]}  a5 {[%clk 0:00:18]} 47. g5 {[%clk 0:00:47]}  Bb2 {[%clk 0:00:15]} 48. f5 {[%clk 0:00:46]}  Nb7 {[%clk 0:00:12]} 49. Bc4 {[%clk 0:00:29]}  Nc5 {[%clk 0:00:06]} 50. Ne3+ {[%clk 0:00:18]}  Kg7 {[%clk 0:00:06]} 51. Bb5 {[%clk 0:00:18]}  Bd4 {[%clk 0:00:05]} 52. Ng4 {[%clk 0:00:18]}  Nb7 {[%clk 0:00:04]} 53. Kf4 {[%clk 0:00:17]}  Nd6 {[%clk 0:00:04]} 54. f6+ {[%clk 0:00:17]}  Kf8 {[%clk 0:00:02]} 55. Bd3 {[%clk 0:00:16]}  Ne8 {[%clk 0:00:02]} 56. Kf5 {[%clk 0:00:16]}  Nd6+ {[%clk 0:00:02]} 57. Ke6 {[%clk 0:00:16]}  Ne8 {[%clk 0:00:01]} 58. g6 {[%clk 0:00:16]}  Nc7+ {[%clk 0:00:02]} 59. Kd6 {[%clk 0:00:16]}  Na6 {[%clk 0:00:00]} 60. g7+ {[%clk 0:00:15]} 1-0


[Site "https://www.chess.com"]

[Event "Titled Tuesday Blitz June 27 Late 2023"]
[White "Gertler, David"]
[Black "Mickiewicz, Piotr"]
[WhiteFideId "2017377"]
[BlackFideId "1114891"]
[WhiteElo "2294"]
[BlackElo "2437"]
[Result "0-1"]
[Round "5"]
[TimeControl "180+2"]
[Date "2023.06.27"]
[WhiteClock "0:00:40"]
[BlackClock "0:00:36"]
[Board "137"]

1. e4 {[%clk 0:03:00]}  c5 {[%clk 0:02:59]} 2. c3 {[%clk 0:03:01]}  Nf6 {[%clk 0:02:56]} 3. e5 {[%clk 0:03:01]}  Nd5 {[%clk 0:02:56]} 4. d4 {[%clk 0:03:02]}  cxd4 {[%clk 0:02:56]} 5. Bc4 {[%clk 0:03:03]}  e6 {[%clk 0:02:52]} 6. Bxd5 {[%clk 0:03:03]}  exd5 {[%clk 0:02:50]} 7. Qxd4 {[%clk 0:03:03]}  d6 {[%clk 0:02:43]} 8. Qxd5 {[%clk 0:03:03]}  dxe5 {[%clk 0:02:42]} 9. Qxe5+ {[%clk 0:03:03]}  Be6 {[%clk 0:02:40]} 10. Nf3 {[%clk 0:02:58]}  Nc6 {[%clk 0:02:39]} 11. Qb5 {[%clk 0:02:51]}  Be7 {[%clk 0:02:00]} 12. O-O {[%clk 0:02:51]}  O-O {[%clk 0:01:59]} 13. Be3 {[%clk 0:02:45]}  Qc7 {[%clk 0:01:55]} 14. Nbd2 {[%clk 0:02:41]}  Rfd8 {[%clk 0:01:44]} 15. Rfe1 {[%clk 0:02:34]}  Rd5 {[%clk 0:01:43]} 16. Qe2 {[%clk 0:02:34]}  Rad8 {[%clk 0:01:42]} 17. Nd4 {[%clk 0:02:29]}  Nxd4 {[%clk 0:01:38]} 18. Bxd4 {[%clk 0:02:29]}  Bd6 {[%clk 0:01:30]} 19. h3 {[%clk 0:02:25]}  b6 {[%clk 0:01:19]} 20. Nf3 {[%clk 0:02:20]}  Rf5 {[%clk 0:01:11]} 21. Be5 {[%clk 0:01:51]}  h6 {[%clk 0:00:58]} 22. Bxd6 {[%clk 0:01:49]}  Rxd6 {[%clk 0:00:56]} 23. Nd4 {[%clk 0:01:49]}  Rf6 {[%clk 0:00:55]} 24. Qe5 {[%clk 0:01:43]}  Qd7 {[%clk 0:00:52]} 25. Re3 {[%clk 0:01:34]}  Rg6 {[%clk 0:00:43]} 26. Rg3 {[%clk 0:01:08]}  Rxg3 {[%clk 0:00:41]} 27. Qxg3 {[%clk 0:01:05]}  Bd5 {[%clk 0:00:40]} 28. Qe3 {[%clk 0:01:00]}  Rg6 {[%clk 0:00:38]} 29. Kh2 {[%clk 0:00:40]}  Rxg2+ {[%clk 0:00:36]} 0-1


[Site "https://www.chess.com"]

[Event "Titled Tuesday Blitz June 27 Late 2023"]
[White "Labussiere, Yago"]
[Black "Sarkar, Justin"]
[WhiteFideId "2186969"]
[BlackFideId "2010011"]
[WhiteElo "2427"]
[BlackElo "2286"]
[Result "1-0"]
[Round "5"]
[TimeControl "180+2"]
[Date "2023.06.27"]
[WhiteClock "0:02:01"]
[BlackClock "0:00:00"]
[Board "138"]

1. c4 {[%clk 0:02:59]}  Nf6 {[%clk 0:02:50]} 2. Nc3 {[%clk 0:02:59]}  e5 {[%clk 0:02:47]} 3. Nf3 {[%clk 0:02:58]}  Nc6 {[%clk 0:02:45]} 4. e4 {[%clk 0:02:58]}  Be7 {[%clk 0:02:38]} 5. Be2 {[%clk 0:02:56]}  O-O {[%clk 0:02:36]} 6. O-O {[%clk 0:02:56]}  d6 {[%clk 0:02:33]} 7. d4 {[%clk 0:02:56]}  Bg4 {[%clk 0:02:30]} 8. d5 {[%clk 0:02:54]}  Bxf3 {[%clk 0:02:24]} 9. Bxf3 {[%clk 0:02:55]}  Nd4 {[%clk 0:02:24]} 10. Be3 {[%clk 0:02:51]}  c5 {[%clk 0:02:08]} 11. dxc6 {[%clk 0:02:51]}  Nxf3+ {[%clk 0:02:05]} 12. Qxf3 {[%clk 0:02:49]}  bxc6 {[%clk 0:02:05]} 13. Rad1 {[%clk 0:02:49]}  Qc7 {[%clk 0:01:58]} 14. b3 {[%clk 0:02:48]}  Nd7 {[%clk 0:01:48]} 15. Qg3 {[%clk 0:02:43]}  f5 {[%clk 0:01:37]} 16. Bh6 {[%clk 0:02:31]}  Rf7 {[%clk 0:01:34]} 17. exf5 {[%clk 0:02:29]}  Kh8 {[%clk 0:01:26]} 18. Bg5 {[%clk 0:02:27]}  Nc5 {[%clk 0:01:02]} 19. Bxe7 {[%clk 0:02:10]}  Qxe7 {[%clk 0:01:00]} 20. Qf3 {[%clk 0:02:09]}  e4 {[%clk 0:00:56]} 21. Qf4 {[%clk 0:02:07]}  Rd8 {[%clk 0:00:34]} 22. Rfe1 {[%clk 0:02:06]}  Qf6 {[%clk 0:00:23]} 23. Nxe4 {[%clk 0:02:05]}  Nxe4 {[%clk 0:00:20]} 24. Qxe4 {[%clk 0:02:05]}  Qxf5 {[%clk 0:00:05]} 25. Qxc6 {[%clk 0:02:05]}  Qxf2+ {[%clk 0:00:04]} 26. Kh1 {[%clk 0:02:06]}  Rdf8 {[%clk 0:00:03]} 27. g3 {[%clk 0:02:02]}  d5 {[%clk 0:00:00]} 28. Qxd5 {[%clk 0:02:01]} 1-0


[Site "https://www.chess.com"]

[Event "Titled Tuesday Blitz June 27 Late 2023"]
[White "Kostiukov, Alexandr"]
[Black "Gasparyan, David"]
[WhiteFideId "14108100"]
[BlackFideId "13311980"]
[WhiteElo "2280"]
[BlackElo "2416"]
[Result "0-1"]
[Round "5"]
[TimeControl "180+2"]
[Date "2023.06.27"]
[WhiteClock "0:00:00"]
[BlackClock "0:02:08"]
[Board "140"]

1. g3 {[%clk 0:01:49]}  g6 {[%clk 0:02:59]} 2. Bg2 {[%clk 0:01:48]}  Bg7 {[%clk 0:03:00]} 3. c4 {[%clk 0:01:49]}  Nf6 {[%clk 0:03:00]} 4. Nf3 {[%clk 0:01:49]}  c6 {[%clk 0:03:01]} 5. O-O {[%clk 0:01:50]}  d5 {[%clk 0:03:02]} 6. cxd5 {[%clk 0:01:49]}  O-O {[%clk 0:03:02]} 7. d4 {[%clk 0:01:50]}  cxd5 {[%clk 0:03:03]} 8. Nc3 {[%clk 0:01:50]}  Bg4 {[%clk 0:03:03]} 9. Bf4 {[%clk 0:01:50]}  Nc6 {[%clk 0:03:03]} 10. Ne5 {[%clk 0:01:50]}  Rc8 {[%clk 0:03:00]} 11. Nxc6 {[%clk 0:01:47]}  bxc6 {[%clk 0:02:59]} 12. Rc1 {[%clk 0:01:46]}  Qa5 {[%clk 0:02:58]} 13. h3 {[%clk 0:01:36]}  Bf5 {[%clk 0:02:57]} 14. g4 {[%clk 0:01:35]}  Bd7 {[%clk 0:02:54]} 15. Qa4 {[%clk 0:01:34]}  Qxa4 {[%clk 0:02:53]} 16. Nxa4 {[%clk 0:01:35]}  Ne4 {[%clk 0:02:52]} 17. Bxe4 {[%clk 0:01:20]}  dxe4 {[%clk 0:02:51]} 18. e3 {[%clk 0:01:20]}  Be6 {[%clk 0:02:49]} 19. b3 {[%clk 0:01:18]}  Bd5 {[%clk 0:02:48]} 20. Nc3 {[%clk 0:01:06]}  Rfd8 {[%clk 0:02:49]} 21. Rc2 {[%clk 0:00:54]}  e6 {[%clk 0:02:48]} 22. Rfc1 {[%clk 0:00:51]}  Ra8 {[%clk 0:02:34]} 23. Nxd5 {[%clk 0:00:38]}  cxd5 {[%clk 0:02:35]} 24. Rc7 {[%clk 0:00:36]}  Bf8 {[%clk 0:02:34]} 25. Rb7 {[%clk 0:00:32]}  Rdc8 {[%clk 0:02:33]} 26. Rxc8 {[%clk 0:00:29]}  Rxc8 {[%clk 0:02:31]} 27. Rxa7 {[%clk 0:00:27]}  Bb4 {[%clk 0:02:26]} 28. Rb7 {[%clk 0:00:17]}  Ba3 {[%clk 0:02:18]} 29. Rb8 {[%clk 0:00:16]}  Rf8 {[%clk 0:02:15]} 30. Rxf8+ {[%clk 0:00:14]}  Kxf8 {[%clk 0:02:15]} 31. Kf1 {[%clk 0:00:12]}  Ke7 {[%clk 0:02:16]} 32. Ke2 {[%clk 0:00:12]}  Kd7 {[%clk 0:02:15]} 33. Kd2 {[%clk 0:00:12]}  Kc6 {[%clk 0:02:16]} 34. Kc2 {[%clk 0:00:12]}  Kb5 {[%clk 0:02:16]} 35. Bc7 {[%clk 0:00:08]}  f5 {[%clk 0:02:15]} 36. Bd8 {[%clk 0:00:04]}  h6 {[%clk 0:02:12]} 37. gxf5 {[%clk 0:00:04]}  exf5 {[%clk 0:02:12]} 38. Bf6 {[%clk 0:00:03]}  Bb4 {[%clk 0:02:10]} 39. Bg7 {[%clk 0:00:02]}  h5 {[%clk 0:02:08]} 40. Bh6 {[%clk 0:00:00]}  Be1 {[%clk 0:02:08]} 0-1


[Site "https://www.chess.com"]

[Event "Titled Tuesday Blitz June 27 Late 2023"]
[White "Nunez V, Gustavo Eduardo"]
[Black "Luxama, Jacques Muller"]
[WhiteFideId "4403690"]
[BlackFideId "11900113"]
[WhiteElo "2412"]
[BlackElo "2233"]
[Result "1-0"]
[Round "5"]
[TimeControl "180+2"]
[Date "2023.06.27"]
[WhiteClock "0:01:21"]
[BlackClock "0:00:00"]
[Board "142"]

1. e4 {[%clk 0:02:16]}  c5 {[%clk 0:02:56]} 2. Nc3 {[%clk 0:02:16]}  Nc6 {[%clk 0:02:55]} 3. g3 {[%clk 0:02:13]}  g6 {[%clk 0:02:52]} 4. Bg2 {[%clk 0:02:13]}  Bg7 {[%clk 0:02:53]} 5. d3 {[%clk 0:02:12]}  h5 {[%clk 0:02:49]} 6. h3 {[%clk 0:02:09]}  d6 {[%clk 0:02:40]} 7. Be3 {[%clk 0:02:05]}  e5 {[%clk 0:02:34]} 8. Qd2 {[%clk 0:02:05]}  f5 {[%clk 0:02:28]} 9. Nd5 {[%clk 0:01:57]}  Nge7 {[%clk 0:02:06]} 10. Bg5 {[%clk 0:01:56]}  Be6 {[%clk 0:01:58]} 11. exf5 {[%clk 0:01:51]}  Bxd5 {[%clk 0:01:43]} 12. Bxd5 {[%clk 0:01:52]}  gxf5 {[%clk 0:01:41]} 13. Nf3 {[%clk 0:01:49]}  Qd7 {[%clk 0:01:40]} 14. Bb3 {[%clk 0:01:44]}  O-O-O {[%clk 0:01:34]} 15. O-O-O {[%clk 0:01:43]}  Kb8 {[%clk 0:01:27]} 16. Nh4 {[%clk 0:01:40]}  d5 {[%clk 0:01:03]} 17. f4 {[%clk 0:01:37]}  e4 {[%clk 0:00:50]} 18. dxe4 {[%clk 0:01:37]}  fxe4 {[%clk 0:00:46]} 19. f5 {[%clk 0:01:34]}  Be5 {[%clk 0:00:19]} 20. f6 {[%clk 0:01:30]}  Nf5 {[%clk 0:00:12]} 21. Nxf5 {[%clk 0:01:25]}  Qxf5 {[%clk 0:00:08]} 22. Rhf1 {[%clk 0:01:26]}  Qg6 {[%clk 0:00:07]} 23. h4 {[%clk 0:01:21]}  c4 {[%clk 0:00:00]} 24. Ba4 {[%clk 0:01:21]} 1-0


[Site "https://www.chess.com"]